bitfinex-derivatives/quotes_BTCF0:USTF0_20251230
["timestamp","ask_amount","ask_price","bid_price","bid_amount"]
[1767131029235,0.0278767,88319.0,88310.0,0.0113359]
[1767131029534,0.011334,88325.0,88310.0,0.0113359]
[1767131029735,0.02787672,88324.0,88310.0,0.0113359]
[1767131029934,0.02787672,88323.0,88310.0,0.0113359]
[1767131030140,0.02787672,88322.0,88310.0,0.0113359]
[1767131030336,0.02787672,88321.0,88310.0,0.0113359]
[1767131030535,0.02787672,88320.0,88310.0,0.0113359]
[1767131030734,0.02787672,88319.0,88310.0,0.0113359]
[1767131031034,0.011334,88325.0,88310.0,0.0113359]
[1767131031235,0.02787668,88324.0,88310.0,0.0113359]
[1767131031534,0.02787668,88323.0,88310.0,0.0113359]
[1767131031738,0.02787668,88322.0,88310.0,0.0113359]
[1767131031935,0.02787668,88321.0,88310.0,0.0113359]
[1767131032236,0.0113339,88326.0,88310.0,0.0113359]
[1767131032436,0.02787664,88325.0,88310.0,0.0113359]
[1767131032633,0.02787664,88324.0,88310.0,0.0113359]
[1767131032837,0.02787664,88323.0,88310.0,0.0113359]
[1767131033133,0.02787664,88322.0,88310.0,0.0113359]
[1767131033340,0.02787664,88321.0,88308.0,0.05672]
[1767131033637,0.02787789,88320.0,88308.0,0.05672]
[1767131033837,0.02787789,88319.0,88307.0,0.05672]
[1767131034040,0.02787789,88318.0,88307.0,0.05672]
[1767131034232,0.02787789,88317.0,88307.0,0.05672]
[1767131034428,0.0113339,88326.0,88307.0,0.05672]
[1767131034635,0.02787609,88325.0,88307.0,0.05672]
[1767131034933,0.02787609,88324.0,88307.0,0.05672]
[1767131035133,0.02787609,88323.0,88307.0,0.05672]
[1767131035335,0.02787609,88322.0,88307.0,0.05672]
[1767131035534,0.02787609,88321.0,88307.0,0.05672]
[1767131035734,0.02787609,88320.0,88307.0,0.05672]
[1767131035936,0.02787609,88319.0,88307.0,0.05672]
[1767131036136,0.02787609,88318.0,88307.0,0.05672]
[1767131036339,0.0113348,88319.0,88307.0,0.05672]
[1767131036533,0.02787306,88318.0,88307.0,0.05672]
[1767131036733,0.0113348,88319.0,88307.0,0.05672]
[1767131036929,0.02787307,88318.0,88307.0,0.05672]
[1767131037129,0.0113348,88319.0,88307.0,0.05672]
[1767131037333,0.02787191,88318.0,88307.0,0.05672]
[1767131037545,0.0113348,88319.0,88307.0,0.05672]
[1767131038244,0.02787191,88318.0,88307.0,0.05672]
[1767131038445,0.0113348,88319.0,88307.0,0.05672]
[1767131038634,0.02787132,88318.0,88307.0,0.05672]
[1767131038836,0.0113348,88319.0,88307.0,0.05672]
[1767131039033,0.0278709,88318.0,88307.0,0.05672]
[1767131039239,0.0113348,88319.0,88307.0,0.05672]
[1767131039444,0.02787133,88318.0,88307.0,0.05672]
[1767131039645,0.0113351,88317.0,88307.0,0.05672]
[1767131040541,0.0113347,88320.0,88307.0,0.05672]
[1767131040741,0.02787029,88319.0,88307.0,0.05672]
[1767131040938,0.02787029,88318.0,88307.0,0.05672]
[1767131041149,0.0113347,88320.0,88307.0,0.05672]
[1767131041451,0.02787029,88319.0,88307.0,0.05672]
[1767131041743,0.02787029,88318.0,88307.0,0.05672]
[1767131041948,0.0113349,88318.0,88307.0,0.05672]
[1767131042446,0.0113357,88312.0,88300.0,0.13870198]
[1767131042750,0.0113355,88314.0,88301.0,0.05672]
[1767131049454,0.0113351,88317.0,88301.0,0.05672]
[1767131050461,0.0113353,88315.0,88301.0,0.05672]
[1767131051259,0.011335,88318.0,88301.0,0.05672]
[1767131051461,0.0113352,88316.0,88301.0,0.05672]
[1767131054963,0.0113348,88319.0,88301.0,0.05672]
[1767131055157,0.02786442,88318.0,88301.0,0.05672]
[1767131055357,0.02786442,88317.0,88304.0,0.0113366]
[1767131055667,0.0113348,88319.0,88304.0,0.0113366]
[1767131055857,0.02786504,88318.0,88304.0,0.0113366]
[1767131056156,0.02786504,88317.0,88304.0,0.0113366]
[1767131056464,0.0113348,88319.0,88304.0,0.0113366]
[1767131056664,0.02786515,88318.0,88304.0,0.0113366]
[1767131056963,0.0113344,88322.0,88304.0,0.0113366]
[1767131057266,0.02786514,88321.0,88304.0,0.0113366]
[1767131057464,0.02786514,88320.0,88304.0,0.0113366]
[1767131057663,0.02786514,88319.0,88304.0,0.0113366]
[1767131057960,0.02786514,88318.0,88304.0,0.0113366]
[1767131058171,0.02786514,88317.0,88304.0,0.0113366]
[1767131058357,0.0113344,88322.0,88306.0,0.0113364]
[1767131058557,0.0278525,88321.0,88308.0,0.0113362]
[1767131058758,0.0278525,88320.0,88308.0,0.0113362]
[1767131058961,0.0278525,88319.0,88308.0,0.0113362]
[1767131059265,0.0278525,88318.0,88308.0,0.0113362]
[1767131059465,0.0278525,88317.0,88308.0,0.0113362]
[1767131059657,0.0113344,88322.0,88308.0,0.0113362]
[1767131059857,0.02785385,88321.0,88308.0,0.0113362]
[1767131060063,0.02785385,88320.0,88308.0,0.0113362]
[1767131060265,0.02785385,88319.0,88308.0,0.0113362]
[1767131060466,0.02785385,88318.0,88308.0,0.0113362]
[1767131060767,0.0113341,88325.0,88308.0,0.0113362]
[1767131060968,0.02785468,88324.0,88308.0,0.0113362]
[1767131061274,0.03918898,88323.0,88308.0,0.0113362]
[1767131061565,0.02785468,88322.0,88308.0,0.0113362]
[1767131067070,0.0113345,88321.0,88308.0,0.0113362]
[1767131067273,0.02785468,88320.0,88308.0,0.0113362]
[1767131067972,0.0611579,88337.0,88310.0,0.13870198]
[1767131068170,0.0611579,88340.0,88327.0,0.13870198]
[1767131068359,0.0613319,88342.0,88325.0,0.00016989]
[1767131068562,0.05,88342.0,88325.0,0.00016989]
[1767131068761,0.05,88342.0,88330.0,0.13870198]
[1767131068964,0.05,88342.0,88325.0,0.00016989]
[1767131069366,0.05,88342.0,88330.0,0.13870198]
[1767131070374,0.05,88342.0,88325.0,0.00016989]
[1767131071378,0.05,88342.0,88325.0,0.01150389]
[1767131074381,0.011332,88341.0,88325.0,0.00016989]
[1767131075784,0.05,88342.0,88325.0,0.00016989]
[1767131077183,0.05,88342.0,88327.0,0.0113336]
[1767131077383,0.0613318,88342.0,88327.0,0.0113336]
[1767131080082,0.0113321,88340.0,88325.0,0.00016989]
[1767131080283,0.02764849,88339.0,88325.0,0.00016989]
[1767131081182,0.0113328,88335.0,88325.0,0.00016989]
[1767131081376,0.13870198,88335.0,88311.0,0.04569317]
[1767131081586,0.13870198,88330.0,88302.0,0.01110342]
[1767131081773,0.0113342,88324.0,88310.0,0.04569317]
[1767131081975,0.0113334,88330.0,88314.0,0.0113353]
[1767131082280,0.0113334,88330.0,88315.0,0.05672]
[1767131082484,0.00016989,88331.0,88316.0,0.0113351]
[1767131082669,0.00016989,88331.0,88318.0,0.0113348]
[1767131083880,0.00016989,88331.0,88315.0,0.05672]
[1767131084975,0.011334,88326.0,88315.0,0.05672]
[1767131085482,0.00016989,88331.0,88315.0,0.05672]
[1767131085483,0.0113346,88321.0,88315.0,0.05672]
[1767131086489,0.0113348,88319.0,88314.0,0.05688989]
[1767131086678,0.0113351,88317.0,88314.0,9e-08]
[1767131086879,0.0113347,88320.0,88314.0,9e-08]
[1767131087382,0.00016989,88331.0,88314.0,9e-08]
[1767131087571,0.00016989,88331.0,88314.0,0.05672008]
[1767131087777,0.00016989,88331.0,88314.0,8e-08]
[1767131088177,0.0113348,88320.0,88314.0,8e-08]
[1767131089488,0.011335,88318.0,88314.0,8e-08]
[1767131092985,0.0113345,88321.0,88314.0,8e-08]
[1767131093185,0.0113348,88319.0,88314.0,8e-08]
[1767131093692,0.00016989,88331.0,88314.0,8e-08]
[1767131093693,0.0113345,88322.0,88314.0,8e-08]
[1767131094592,0.0113347,88320.0,88314.0,8e-08]
[1767131096797,0.0113335,88329.0,88314.0,8e-08]
[1767131097798,0.0113358,88311.0,88308.0,0.09632009]
[1767131098093,0.0113361,88309.0,88300.0,0.13870198]
[1767131098285,0.0113361,88309.0,88301.0,0.15304]
[1767131098693,0.13870198,88320.0,88301.0,0.15304]
[1767131098882,0.0113358,88311.0,88302.0,0.00016989]
[1767131101797,0.0113355,88314.0,88302.0,0.00016989]
[1767131102097,0.0113354,88314.0,88302.0,0.00016989]
[1767131102296,0.0113351,88317.0,88302.0,0.00016989]
[1767131102496,0.0113351,88317.0,88303.0,0.0113367]
[1767131103398,0.0113353,88315.0,88302.0,0.00016989]
[1767131103702,0.0113356,88313.0,88302.0,0.00016989]
[1767131106601,0.0113359,88311.0,88302.0,0.00016989]
[1767131107506,0.0113352,88316.0,88302.0,0.00016989]
[1767131107706,0.00016989,88319.0,88302.0,0.00016989]
[1767131107707,0.0113354,88314.0,88302.0,0.00016989]
[1767131108599,0.011335,88318.0,88302.0,0.01150679]
[1767131109500,0.0113352,88316.0,88302.0,0.01150679]
[1767131111005,0.0113355,88314.0,88302.0,0.00016989]
[1767131113401,0.0113351,88317.0,88302.0,0.00016989]
[1767131113607,0.0113352,88316.0,88302.0,0.00016989]
[1767131113812,0.00016989,88319.0,88302.0,0.00016989]
[1767131113813,0.0113355,88314.0,88302.0,0.00016989]
[1767131114306,0.0113357,88312.0,88302.0,0.00016989]
[1767131114608,0.0113353,88316.0,88302.0,0.00016989]
[1767131114811,0.00016989,88319.0,88302.0,0.00016989]
[1767131115411,0.011335,88318.0,88302.0,0.00016989]
[1767131115601,0.0113352,88316.0,88302.0,0.00016989]
[1767131117411,0.0113352,88316.0,88302.0,0.01150679]
[1767131118117,0.01150469,88319.0,88302.0,0.01150679]
[1767131118806,0.00016989,88319.0,88307.0,0.0113362]
[1767131119112,0.00016989,88319.0,88309.0,0.011336]
[1767131119512,0.00016989,88319.0,88308.0,0.05672]
[1767131120212,0.00016989,88319.0,88309.0,0.011336]
[1767131121610,0.00016989,88319.0,88311.0,0.0113357]
[1767131123317,0.00016989,88319.0,88314.0,0.0113353]
[1767131123803,0.00016989,88319.0,88311.0,0.0113357]
[1767131125116,0.00016989,88319.0,88313.0,0.0113355]
[1767131128214,0.0611579,88341.0,88308.0,0.05672]
[1767131128215,0.0113328,88335.0,88317.0,0.0113349]
[1767131128421,0.18000711,88334.0,88321.0,0.0113344]
[1767131128616,0.02696711,88333.0,88323.0,0.0113342]
[1767131128824,0.02696711,88332.0,88323.0,0.0113342]
[1767131129028,0.02696711,88331.0,88323.0,0.0113342]
[1767131129233,0.05672,88334.0,88323.0,0.0113342]
[1767131129429,0.02695922,88333.0,88323.0,0.0113342]
[1767131129629,0.02695922,88332.0,88323.0,0.0113342]
[1767131129927,0.02695922,88331.0,88323.0,0.0113342]
[1767131130129,0.05672,88334.0,88323.0,0.0113342]
[1767131130329,0.02695921,88333.0,88323.0,0.0113342]
[1767131130530,0.02695921,88332.0,88323.0,0.0113342]
[1767131130730,0.05672,88334.0,88323.0,0.0113342]
[1767131130931,0.02695534,88333.0,88323.0,0.0113342]
[1767131131232,0.02695534,88332.0,88323.0,0.0113342]
[1767131131423,0.05672,88334.0,88323.0,0.0113342]
[1767131131730,0.02695217,88333.0,88318.0,0.00016989]
[1767131131930,0.02695217,88332.0,88318.0,0.00016989]
[1767131132133,0.05672,88334.0,88318.0,0.00016989]
[1767131132427,0.02695207,88333.0,88318.0,0.00016989]
[1767131132633,0.02695207,88332.0,88323.0,0.0113342]
[1767131132836,0.05672,88334.0,88323.0,0.0113342]
[1767131133028,0.02694939,88333.0,88323.0,0.0113342]
[1767131133233,0.02694939,88332.0,88323.0,0.0113342]
[1767131133537,0.09648989,88336.0,88325.0,0.0113339]
[1767131133834,0.02694703,88335.0,88325.0,0.0113339]
[1767131134034,0.02694703,88334.0,88325.0,0.0113339]
[1767131134233,0.02694703,88333.0,88325.0,0.0113339]
[1767131134536,0.09648989,88336.0,88325.0,0.0113339]
[1767131134731,0.02694497,88335.0,88325.0,0.0113339]
[1767131134930,0.02694497,88334.0,88325.0,0.0113339]
[1767131135232,0.02694497,88333.0,88325.0,0.0113339]
[1767131135432,0.09648989,88336.0,88325.0,0.0113339]
[1767131135623,0.02694296,88335.0,88325.0,0.0113339]
[1767131135826,0.02694296,88334.0,88325.0,0.0113339]
[1767131136033,0.09648989,88336.0,88325.0,0.0113339]
[1767131136235,0.0269428,88335.0,88325.0,0.0113339]
[1767131136432,0.00016989,88336.0,88325.0,0.0113339]
[1767131136433,0.0269428,88334.0,88325.0,0.0113339]
[1767131136636,0.00016989,88336.0,88327.0,0.0113337]
[1767131139738,0.00016989,88336.0,88324.0,0.0113341]
[1767131140337,0.00016989,88336.0,88326.0,0.0113338]
[1767131140638,0.00016989,88336.0,88323.0,0.0113342]
[1767131141539,0.00016989,88336.0,88318.0,0.04474605]
[1767131141741,0.00016989,88336.0,88327.0,0.0113337]
[1767131142435,0.00016989,88336.0,88329.0,0.0113334]
[1767131143435,0.00016989,88336.0,88326.0,0.0113338]
[1767131144241,0.00016989,88336.0,88328.0,0.0113336]
[1767131145143,0.00016989,88336.0,88318.0,0.04474605]
[1767131145144,9e-08,88336.0,88332.0,0.011333]
[1767131145338,0.05,88342.0,88334.0,0.0113327]
[1767131147543,0.05,88342.0,88322.0,0.09632]
[1767131148334,0.05672,88343.0,88335.0,0.0113327]
[1767131149143,0.05672,88343.0,88332.0,0.0113331]
[1767131150847,0.05672,88343.0,88334.0,0.0113328]
[1767131152443,0.05672,88343.0,88323.0,0.0113342]
[1767131152638,0.09632,88346.0,88323.0,0.0113342]
[1767131152838,0.09632,88346.0,88334.0,0.0113327]
[1767131157047,0.09632,88346.0,88331.0,0.0113331]
[1767131157650,0.09632,88346.0,88333.0,0.0113329]
[1767131162751,0.00016989,88347.0,88333.0,0.0113329]
[1767131162953,0.0269196,88346.0,88333.0,0.0113329]
[1767131163148,0.00016989,88347.0,88333.0,0.0113329]
[1767131163358,0.02691958,88346.0,88333.0,0.0113329]
[1767131163560,0.00016989,88347.0,88333.0,0.0113329]
[1767131163756,0.02692087,88346.0,88333.0,0.0113329]
[1767131163956,0.00016989,88347.0,88333.0,0.0113329]
[1767131164157,0.02692068,88346.0,88333.0,0.0113329]
[1767131164354,0.00016989,88347.0,88333.0,0.0113329]
[1767131164554,0.02692232,88346.0,88333.0,0.0113329]
[1767131164856,0.00016989,88347.0,88333.0,0.0113329]
[1767131165156,0.02692232,88346.0,88333.0,0.0113329]
[1767131165358,0.00016989,88347.0,88333.0,0.0113329]
[1767131165548,0.02692434,88346.0,88333.0,0.0113329]
[1767131165751,0.00016989,88347.0,88333.0,0.0113329]
[1767131165961,0.02692435,88346.0,88333.0,0.0113329]
[1767131166160,0.00016989,88347.0,88333.0,0.0113329]
[1767131167056,0.02692687,88346.0,88333.0,0.0113329]
[1767131167257,0.02692687,88345.0,88333.0,0.0113329]
[1767131167457,0.00016989,88347.0,88333.0,0.0113329]
[1767131167656,0.02692797,88346.0,88333.0,0.0113329]
[1767131167856,0.02692797,88345.0,88333.0,0.0113329]
[1767131168059,0.00016989,88347.0,88333.0,0.0113329]
[1767131168257,0.02692797,88346.0,88333.0,0.0113329]
[1767131168458,0.02692797,88345.0,88333.0,0.0113329]
[1767131168658,0.00016989,88347.0,88333.0,0.0113329]
[1767131168866,0.02692913,88346.0,88333.0,0.0113329]
[1767131169062,0.02692913,88345.0,88333.0,0.0113329]
[1767131169263,0.00016989,88347.0,88330.0,0.13860146]
[1767131169264,0.00016989,88347.0,88335.0,0.0113327]
[1767131169465,0.0269307,88346.0,88335.0,0.0113327]
[1767131169660,0.0269307,88345.0,88335.0,0.0113327]
[1767131169859,0.00016989,88347.0,88335.0,0.0113327]
[1767131170071,0.0269307,88346.0,88335.0,0.0113327]
[1767131170263,0.0269307,88345.0,88330.0,0.13860146]
[1767131170466,0.00016989,88347.0,88330.0,0.13860146]
[1767131170667,0.02693265,88346.0,88330.0,0.13860146]
[1767131170964,0.02693265,88345.0,88330.0,0.13860146]
[1767131171167,0.00016989,88347.0,88330.0,0.13860146]
[1767131171466,0.02693265,88346.0,88330.0,0.13860146]
[1767131171668,0.00016989,88347.0,88330.0,0.13860146]
[1767131171669,0.02693265,88345.0,88330.0,0.13860146]
[1767131171967,0.00016989,88347.0,88330.0,0.13860146]
[1767131172168,0.02693532,88346.0,88327.0,0.05672]
[1767131172363,0.02693532,88345.0,88330.0,0.13860146]
[1767131172565,0.00016989,88347.0,88330.0,0.13860146]
[1767131172765,0.02693856,88346.0,88330.0,0.13860146]
[1767131173068,0.02693856,88345.0,88330.0,0.13860146]
[1767131173269,0.02694185,88344.0,88333.0,0.0113329]
[1767131173468,0.00016989,88347.0,88333.0,0.0113329]
[1767131173668,0.02694198,88346.0,88333.0,0.0113329]
[1767131173867,0.02694198,88345.0,88333.0,0.0113329]
[1767131174068,0.00016989,88347.0,88335.0,0.0113327]
[1767131174269,0.0269417,88346.0,88335.0,0.0113327]
[1767131174569,0.0269417,88345.0,88335.0,0.0113327]
[1767131174771,0.00016989,88347.0,88335.0,0.0113327]
[1767131174967,0.02694563,88346.0,88335.0,0.0113327]
[1767131175167,0.02694563,88345.0,88335.0,0.0113327]
[1767131175363,0.00016989,88347.0,88335.0,0.0113327]
[1767131175364,0.02694778,88344.0,88335.0,0.0113327]
[1767131175664,0.00016989,88347.0,88335.0,0.0113327]
[1767131175860,0.02694772,88346.0,88335.0,0.0113327]
[1767131176073,0.02694772,88345.0,88335.0,0.0113327]
[1767131176266,0.02694772,88344.0,88335.0,0.0113327]
[1767131176462,0.00016989,88347.0,88335.0,0.0113327]
[1767131176669,0.02694863,88346.0,88335.0,0.0113327]
[1767131176868,0.02694863,88345.0,88335.0,0.0113327]
[1767131177069,0.00016989,88347.0,88335.0,0.0113327]
[1767131177070,0.02694863,88344.0,88335.0,0.0113327]
[1767131177270,0.00016989,88347.0,88335.0,0.0113327]
[1767131177469,0.02687699,88346.0,88335.0,0.0113327]
[1767131177685,0.05668,88359.0,88345.0,0.0113314]
[1767131177886,0.05668,88359.0,88342.0,0.0113317]
[1767131178194,0.0113302,88355.0,88341.0,0.05668]
[1767131178390,0.05668,88359.0,88341.0,0.05668]
[1767131178591,0.0113306,88352.0,88341.0,0.05668]
[1767131180592,0.00016952,88355.0,88341.0,0.05668]
[1767131181587,0.00016952,88355.0,88342.0,0.0113318]
[1767131183193,0.00016952,88355.0,88341.0,0.05668]
[1767131183396,0.05668,88372.0,88346.0,0.0113313]
[1767131183599,0.13860146,88370.0,88346.0,0.0113313]
[1767131183989,0.0113292,88363.0,88346.0,0.0113313]
[1767131184189,0.0113292,88363.0,88343.0,0.0113316]
[1767131184390,0.0113292,88363.0,88345.0,0.0113313]
[1767131184590,0.13860146,88370.0,88342.0,0.0113318]
[1767131184791,0.0113294,88362.0,88342.0,0.0113318]
[1767131185192,0.0113294,88362.0,88344.0,0.0113315]
[1767131186593,0.0113294,88362.0,88344.0,0.05689501]
[1767131187792,0.0113289,88365.0,88346.0,0.0113312]
[1767131189801,0.02671604,88364.0,88346.0,0.0113312]
[1767131190002,0.02671604,88363.0,88346.0,0.0113312]
[1767131190201,0.13860146,88370.0,88347.0,0.09632]
[1767131190404,0.02671603,88369.0,88347.0,0.09632]
[1767131190602,0.02671603,88368.0,88347.0,0.09632]
[1767131190798,0.13860146,88370.0,88338.0,0.00016978]
[1767131190799,0.0113305,88353.0,88342.0,0.05668]
[1767131190994,0.0113308,88351.0,88342.0,0.05668]
[1767131193006,0.0113303,88354.0,88342.0,0.05668]
[1767131193300,0.0113297,88359.0,88343.0,0.0113316]
[1767131193903,0.05668,88361.0,88343.0,0.0113316]
[1767131194098,0.05668,88361.0,88345.0,0.0113314]
[1767131194298,0.0113296,88360.0,88342.0,0.0680118]
[1767131194704,0.0113299,88358.0,88342.0,0.0680118]
[1767131194899,0.0113299,88358.0,88342.0,0.05668]
[1767131195709,0.0113299,88358.0,88343.0,0.0113316]
[1767131195910,0.13860146,88360.0,88343.0,0.0113316]
[1767131196110,0.13860146,88360.0,88345.0,0.0113314]
[1767131196408,0.0680094,88361.0,88345.0,0.0113314]
[1767131197510,0.02671713,88360.0,88345.0,0.0113314]
[1767131197713,0.0680094,88361.0,88345.0,0.0113314]
[1767131198010,0.02671713,88360.0,88345.0,0.0113314]
[1767131198310,0.0680094,88361.0,88345.0,0.0113314]
[1767131198514,0.0680094,88361.0,88342.0,0.05668]
[1767131198515,0.0113298,88358.0,88342.0,0.05668]
[1767131198705,0.0680094,88361.0,88342.0,0.0680118]
[1767131198899,0.0113297,88359.0,88342.0,0.0680118]
[1767131199407,0.0113297,88359.0,88344.0,0.0113314]
[1767131200009,0.05668,88361.0,88344.0,0.0113314]
[1767131200307,0.02671996,88360.0,88344.0,0.0113314]
[1767131200506,0.05668,88361.0,88344.0,0.0113314]
[1767131200706,0.0267218,88360.0,88344.0,0.0113314]
[1767131200908,0.05668,88361.0,88347.0,0.0113311]
[1767131201109,0.09632,88371.0,88350.0,0.13860146]
[1767131201307,0.19528146,88370.0,88352.0,0.00016978]
[1767131201704,0.0113284,88369.0,88352.0,0.01150028]
[1767131202215,0.0113287,88367.0,88352.0,0.00016978]
[1767131204302,0.0113289,88365.0,88352.0,0.00016978]
[1767131206713,0.19528146,88370.0,88352.0,0.00016978]
[1767131207016,0.13860146,88362.0,88321.0,0.0113344]
[1767131207210,0.13860146,88362.0,88310.0,0.01632188]
[1767131207211,0.0113298,88358.0,88342.0,0.0113317]
[1767131207410,0.19528146,88370.0,88343.0,0.15296]
[1767131207715,0.19528146,88370.0,88344.0,0.0113315]
[1767131208120,0.0113292,88363.0,88344.0,0.0113315]
[1767131208316,0.0113292,88363.0,88348.0,0.00016978]
[1767131208918,0.0113295,88361.0,88348.0,0.00016978]
[1767131210218,0.0113297,88359.0,88348.0,0.00016978]
[1767131211519,0.00016978,88366.0,88348.0,0.00016978]
[1767131212519,0.00016978,88366.0,88351.0,0.0113306]
[1767131214218,0.0113293,88362.0,88348.0,0.00016978]
[1767131214927,0.0113289,88365.0,88348.0,0.00016978]
[1767131215118,0.02650871,88364.0,88348.0,0.00016978]
[1767131215419,0.0113289,88365.0,88348.0,0.00016978]
[1767131215625,0.02650876,88364.0,88348.0,0.00016978]
[1767131215827,0.00016978,88366.0,88349.0,0.0113308]
[1767131216127,0.02650876,88365.0,88349.0,0.0113308]
[1767131216326,0.02650876,88364.0,88349.0,0.0113308]
[1767131216527,0.00016978,88366.0,88349.0,0.0113308]
[1767131216827,0.00016978,88366.0,88350.0,0.13860146]
[1767131217327,0.00016978,88366.0,88355.0,0.01133]
[1767131217629,0.06114164,88385.0,88356.0,0.13860146]
[1767131217927,0.02650406,88381.0,88370.0,0.13860146]
[1767131218119,0.05668,88389.0,88370.0,0.13860146]
[1767131219323,0.09628,88391.0,88370.0,0.14992956]
[1767131220326,0.09628,88391.0,88370.0,0.13860146]
[1767131221427,0.0113259,88389.0,88370.0,0.13860146]
[1767131221627,0.0113259,88389.0,88370.0,0.05668]
[1767131221828,0.0113262,88386.0,88370.0,0.05668]
[1767131222028,0.14992716,88390.0,88370.0,0.19528146]
[1767131222424,0.14992716,88390.0,88370.0,0.05668]
[1767131222626,0.00016978,88385.0,88367.0,0.00016978]
[1767131222829,0.13860146,88380.0,88359.0,0.0113296]
[1767131223033,0.13860146,88380.0,88361.0,0.0113293]
[1767131223233,0.00016978,88385.0,88363.0,0.011329]
[1767131223622,0.00016978,88385.0,88366.0,0.0113287]
[1767131223830,0.00016978,88385.0,88362.0,0.15296]
[1767131224028,0.00016978,88385.0,88365.0,0.00016978]
[1767131225234,0.00016978,88385.0,88366.0,0.0113286]
[1767131226345,0.00016978,88385.0,88366.0,0.05564138]
[1767131227138,0.00016978,88385.0,88366.0,0.0113286]
[1767131227338,0.00016978,88385.0,88366.0,0.05564138]
[1767131227833,0.00016978,88385.0,88366.0,0.04431278]
[1767131228041,0.00016978,88385.0,88367.0,0.0113285]
[1767131228839,0.00016978,88385.0,88367.0,0.0565998]
[1767131229338,0.01149618,88385.0,88367.0,0.0113285]
[1767131229540,0.01149618,88385.0,88367.0,0.0565998]
[1767131230039,0.00016978,88385.0,88367.0,0.0452713]
[1767131230834,0.0113272,88379.0,88365.0,0.05684978]
[1767131231030,0.0113272,88379.0,88365.0,0.10224939]
[1767131232542,0.0113272,88379.0,88365.0,0.05684978]
[1767131232834,0.02660127,88382.0,88365.0,0.05684978]
[1767131233137,0.01527457,88382.0,88365.0,0.11378257]
[1767131233334,0.0113269,88381.0,88365.0,0.05684978]
[1767131233540,0.0113269,88381.0,88365.0,0.10245377]
[1767131234540,0.0113269,88381.0,88365.0,0.05684978]
[1767131235045,0.0113269,88381.0,88365.0,0.10187207]
[1767131235337,0.0113269,88381.0,88365.0,0.05684978]
[1767131235640,0.0113269,88381.0,88365.0,0.10187207]
[1767131235943,0.0113269,88381.0,88365.0,0.04519207]
[1767131237433,0.0113271,88379.0,88365.0,0.00016978]
[1767131238443,0.0113271,88379.0,88366.0,0.05668]
[1767131238945,0.0113276,88376.0,88365.0,0.00016978]
[1767131239140,0.0113276,88376.0,88367.0,0.01131]
[1767131239342,0.01527457,88382.0,88367.0,0.01131]
[1767131239542,0.0113271,88379.0,88367.0,0.01131]
[1767131240146,0.01527457,88382.0,88367.0,0.01131]
[1767131240636,0.01527457,88382.0,88369.0,0.0113283]
[1767131240842,0.01527457,88382.0,88368.0,0.05668]
[1767131241949,0.0113268,88381.0,88368.0,0.05668]
[1767131244952,0.01527457,88382.0,88369.0,0.0113283]
[1767131245747,0.02660127,88382.0,88368.0,0.05668]
[1767131245942,0.01527457,88382.0,88368.0,0.05668]
[1767131247251,0.01527457,88382.0,88369.0,0.0113283]
[1767131257365,0.01527457,88382.0,88368.0,0.05668]
[1767131257568,0.01527457,88382.0,88367.0,0.01131]
[1767131257869,0.01527457,88382.0,88368.0,0.05668]
[1767131257870,0.0113273,88378.0,88368.0,0.05668]
[1767131258172,0.0113275,88376.0,88368.0,0.05668]
[1767131258570,0.0113284,88369.0,88365.0,0.00016978]
[1767131258770,0.01527457,88382.0,88354.0,0.05668]
[1767131258771,0.09628,88377.0,88354.0,0.05668]
[1767131258953,0.0113287,88367.0,88354.0,0.05668]
[1767131259359,0.011329,88365.0,88354.0,0.05668]
[1767131259862,0.09628,88377.0,88351.0,0.00016978]
[1767131260063,0.00016978,88373.0,88351.0,0.00016978]
[1767131260265,0.0113303,88354.0,88336.0,0.09196955]
[1767131260454,0.0113302,88355.0,88337.0,0.1642923]
[1767131260654,0.0113303,88354.0,88337.0,0.26613402]
[1767131260860,0.0113299,88357.0,88337.0,0.27746642]
[1767131261169,0.0113299,88357.0,88339.0,0.0113321]
[1767131261365,0.01149968,88357.0,88341.0,0.0113319]
[1767131262671,0.00016978,88357.0,88339.0,0.00016978]
[1767131262971,0.00016978,88357.0,88343.0,0.0113317]
[1767131263172,0.00016978,88357.0,88345.0,0.0113314]
[1767131263860,0.00016978,88357.0,88347.0,0.0113311]
[1767131264061,0.00016978,88357.0,88344.0,0.05668]
[1767131264371,0.00016978,88357.0,88350.0,0.0113307]
[1767131265973,0.00016978,88357.0,88346.0,0.0113312]
[1767131266960,0.00016978,88357.0,88339.0,0.05684978]
[1767131267161,0.00016978,88357.0,88346.0,0.0113313]
[1767131267366,0.00016978,88357.0,88348.0,0.011331]
[1767131267569,0.00016978,88357.0,88350.0,0.0113307]
[1767131268875,0.00016978,88357.0,88350.0,0.0558392]
[1767131269773,0.00016978,88357.0,88346.0,0.0113313]
[1767131273585,0.00016978,88357.0,88348.0,0.011331]
[1767131275490,0.00016978,88357.0,88350.0,0.0113307]
[1767131277988,0.00016978,88357.0,88344.0,0.04573431]
[1767131279187,0.00016978,88357.0,88349.0,0.0113309]
[1767131279485,0.0113291,88364.0,88349.0,0.0113309]
[1767131280582,0.00016978,88365.0,88341.0,0.04414621]
[1767131280782,0.00016978,88365.0,88346.0,0.0113312]
[1767131280984,0.011329,88364.0,88346.0,0.0113312]
[1767131281788,0.011329,88364.0,88348.0,0.011331]
[1767131282681,0.0113297,88359.0,88341.0,0.05547811]
[1767131282888,0.0113297,88359.0,88343.0,0.0113316]
[1767131283082,0.0113293,88362.0,88343.0,0.0113316]
[1767131283286,0.0113293,88362.0,88345.0,0.0113313]
[1767131285688,0.00016978,88365.0,88345.0,0.0113313]
[1767131286488,0.13857754,88360.0,88344.0,0.0113315]
[1767131286984,0.13857754,88360.0,88346.0,0.0113313]
[1767131287488,0.0113293,88362.0,88346.0,0.0113313]
[1767131287688,0.01149868,88365.0,88346.0,0.0113313]
[1767131287884,0.0113292,88363.0,88346.0,0.0113313]
[1767131290390,0.00016978,88365.0,88348.0,0.0113309]
[1767131290686,0.02646582,88364.0,88348.0,0.0113309]
[1767131290887,0.02646582,88363.0,88348.0,0.0113309]
[1767131291089,0.011329,88364.0,88348.0,0.0113309]
[1767131291283,0.02646603,88363.0,88345.0,0.0113314]
[1767131291591,0.011329,88364.0,88347.0,0.0113311]
[1767131291889,0.02646603,88363.0,88347.0,0.0113311]
[1767131292092,0.011329,88364.0,88347.0,0.0113311]
[1767131292290,0.02646621,88363.0,88347.0,0.0113311]
[1767131292490,0.011329,88364.0,88347.0,0.0113311]
[1767131292791,0.02646621,88363.0,88347.0,0.0113311]
[1767131292991,0.13857754,88360.0,88347.0,0.0113311]
[1767131295095,0.0113291,88364.0,88347.0,0.0113311]
[1767131295297,0.02646666,88363.0,88347.0,0.0113311]
[1767131295493,0.0113291,88364.0,88347.0,0.0113311]
[1767131295694,0.02646666,88363.0,88347.0,0.0113311]
[1767131295892,0.0113291,88364.0,88347.0,0.0113311]